bitfinex-derivatives/quotes_BNBF0:USTF0_20241231
["timestamp","ask_amount","ask_price","bid_price","bid_amount"]
[1735654920097,0.25769126,714.54,713.2,1.04315981]
[1735654921396,0.27989643,714.55,713.2,1.04315981]
[1735654921603,0.25772149,714.54,713.16,1.04315981]
[1735654923005,0.25772149,714.54,713.07,1.04315981]
[1735654924206,0.25774371,714.53,712.96,1.04315981]
[1735654924404,0.25774371,714.52,712.96,1.04315981]
[1735654924603,0.25774371,714.51,712.96,1.04315981]
[1735654925207,0.25774371,714.51,713.1,1.04315981]
[1735654926303,0.27991994,714.49,713.06,1.04315981]
[1735654926507,0.25774371,714.48,713.06,1.04315981]
[1735654927608,0.25774371,714.48,712.99,1.04315981]
[1735654928021,0.27993169,714.46,712.99,1.04315981]
[1735654928346,0.25774371,714.45,712.99,1.04315981]
[1735654928542,0.25774371,714.45,712.96,1.04315981]
[1735654929527,0.25774371,714.45,712.92,1.04315981]
[1735654930234,0.25780399,714.44,712.92,1.04315981]
[1735654930430,0.25780399,714.43,712.92,1.04315981]
[1735654930630,0.25780399,714.42,712.82,1.04315981]
[1735654930826,0.25780399,714.41,712.82,1.04315981]
[1735654931025,0.25780399,714.4,712.82,1.04315981]
[1735654931320,0.25780399,714.39,712.82,1.04315981]
[1735654931509,0.25780399,714.38,712.82,1.04315981]
[1735654931712,0.25780399,714.38,712.09,2.12978462]
[1735654931713,0.25780399,714.37,712.66,1.04315981]
[1735654931913,0.25780399,714.36,712.66,1.04315981]
[1735654932112,0.27997872,714.34,712.66,1.04315981]
[1735654932312,0.2578284,714.33,712.66,1.04315981]
[1735654932510,0.2578284,714.32,712.66,1.04315981]
[1735654932816,0.2578284,714.31,712.63,1.04315981]
[1735654933016,0.2578284,714.3,712.63,1.04315981]
[1735654933217,0.2578284,714.29,712.63,1.04315981]
[1735654933417,0.2578284,714.28,712.63,1.04315981]
[1735654933613,0.2578284,714.27,712.63,1.04315981]
[1735654933816,0.2578284,714.26,712.58,1.04315981]
[1735654934116,0.2578284,714.25,712.58,1.04315981]
[1735654934317,0.2578284,714.24,712.58,1.04315981]
[1735654934615,0.25785801,714.23,712.58,1.04315981]
[1735654934811,0.25785801,714.23,711.96,2.12978462]
[1735654934812,0.25785801,714.22,712.54,1.04315981]
[1735654935018,0.27997872,714.34,712.54,1.04315981]
[1735654935019,0.25785801,714.21,712.54,1.04315981]
[1735654935320,0.25785801,714.2,712.54,1.04315981]
[1735654935520,0.25785801,714.19,712.54,1.04315981]
[1735654935816,0.25785801,714.18,712.52,1.04315981]
[1735654936020,0.25785801,714.17,712.52,1.04315981]
[1735654936219,1.46397383,714.23,712.52,1.04315981]
[1735654936220,0.25785801,714.16,712.52,1.04315981]
[1735654936420,0.25785801,714.15,712.52,1.04315981]
[1735654936620,0.25785801,714.14,712.52,1.04315981]
[1735654936922,0.25785801,714.13,712.25,1.04315981]
[1735654937119,0.25787628,714.12,712.25,1.04315981]
[1735654937318,0.25787628,714.11,712.25,1.04315981]
[1735654937512,0.25787628,714.1,712.25,1.04315981]
[1735654937717,0.25787628,714.09,712.25,1.04315981]
[1735654937915,0.25786701,714.08,712.21,1.04315981]
[1735654938119,1.46397383,714.23,712.22,0.2808121]
[1735654938422,0.25786306,714.22,712.22,0.2808121]
[1735654938614,0.2800336,714.2,712.22,0.2808121]
[1735654938813,0.25786306,714.19,712.22,0.2808121]
[1735654939020,0.25786306,714.19,712.24,1.04315981]
[1735654939317,0.25786306,714.19,712.25,0.28080028]
[1735654939621,0.28004536,714.17,712.25,0.28080028]
[1735654939814,0.25786526,714.16,712.25,0.28080028]
[1735654941619,0.28005713,714.14,712.25,0.28080028]
[1735654941813,0.25786526,714.13,712.25,0.28080028]
[1735654942018,0.28005713,714.14,712.25,0.28080028]
[1735654944024,0.28005713,714.14,712.66,1.04315981]
[1735654944223,0.25779168,714.13,712.66,1.04315981]
[1735654944820,0.2578208,714.12,712.66,1.04315981]
[1735654945023,0.2578208,714.12,712.26,0.71500603]
[1735654945024,0.2578208,714.11,712.56,1.04315981]
[1735654945222,0.2578208,714.1,712.56,1.04315981]
[1735654945424,0.2578208,714.09,712.56,1.04315981]
[1735654945624,0.2578286,714.08,712.56,1.04315981]
[1735654945824,0.2578286,714.07,712.56,1.04315981]
[1735654946024,0.2578286,714.06,712.54,1.04315981]
[1735654946325,1.46390199,714.12,712.54,1.04315981]
[1735654946520,0.25780663,714.11,712.54,1.04315981]
[1735654946725,0.28007281,714.1,712.54,1.04315981]
[1735654946921,0.25780663,714.09,712.54,1.04315981]
[1735654947228,0.28008066,714.08,712.63,1.04315981]
[1735654947626,0.25777632,714.07,712.63,1.04315981]
[1735654947826,0.2800885,714.06,712.63,1.04315981]
[1735654948028,0.25777632,714.05,712.63,1.04315981]
[1735654948332,0.28009635,714.04,712.84,1.04315981]
[1735654948627,0.25777632,714.03,712.84,1.04315981]
[1735654949127,0.28010419,714.02,712.84,1.04315981]
[1735654949423,0.25777632,714.01,712.89,1.04315981]
[1735654949627,0.28011204,714.0,712.89,1.04315981]
[1735654949820,0.25777632,713.99,712.89,1.04315981]
[1735654950021,0.28011989,713.98,712.89,1.04315981]
[1735654950428,0.25778737,713.97,712.89,1.04315981]
[1735654950628,0.28011989,713.98,712.89,1.04315981]
[1735654950830,0.25779575,713.97,712.89,1.04315981]
[1735654952035,0.25779575,713.97,712.91,1.04315981]
[1735654952529,0.28011989,713.98,712.91,1.04315981]
[1735654953131,0.28011989,713.98,712.78,1.04315981]
[1735654954131,0.28011989,713.98,712.83,1.04315981]
[1735654955130,0.28011989,713.98,712.81,1.04315981]
[1735654955529,1.46369162,713.97,712.81,1.04315981]
[1735654955934,1.46369162,713.97,712.78,1.04315981]
[1735654957342,1.46369162,713.97,712.8,1.04315981]
[1735654958433,1.46369162,713.97,712.9,1.04315981]
[1735654959834,1.46369162,713.97,713.0,1.04315981]
[1735654961236,1.46369162,713.97,712.26,2.84697833]
[1735654961237,1.46369162,713.97,713.02,1.04315981]
[1735654962939,1.46369162,713.97,713.05,1.04315981]
[1735654964038,1.46369162,713.97,713.01,1.04315981]
[1735654965332,1.46369162,713.97,712.99,1.04315981]
[1735654966435,1.46369162,713.97,713.02,1.04315981]
[1735654967535,1.46369162,713.97,713.04,1.04315981]
[1735654968839,1.46369162,713.97,712.39,2.12978462]
[1735654968840,1.46369162,713.97,713.01,1.04315981]
[1735654969736,1.46369162,713.97,713.07,1.04315981]
[1735654971337,1.46369162,713.97,713.03,1.04315981]
[1735654972539,1.46369162,713.97,712.43,2.12978462]
[1735654972540,1.46369162,713.97,712.99,1.04315981]
[1735654975742,1.46369162,713.97,713.06,1.04315981]
[1735654976544,1.46369162,713.97,713.1,1.04315981]
[1735654977340,1.46369162,713.97,713.14,1.04315981]
[1735654978338,1.46369162,713.97,713.02,1.04315981]
[1735654979346,1.46369162,713.97,713.0,1.04315981]
[1735654980247,1.46369162,713.97,713.02,1.04315981]
[1735654981743,1.46369162,713.97,712.98,1.04315981]
[1735654983047,1.46369162,713.97,713.04,1.04315981]
[1735654984251,1.46369162,713.97,713.27,1.04315981]
[1735654985651,1.46369162,713.97,713.2,1.04315981]
[1735654986950,1.46369162,713.97,713.22,1.04315981]
[1735654988354,1.46369162,713.97,713.14,1.04315981]
[1735654989265,1.46369162,713.97,712.87,1.04315981]
[1735654989266,1.46369162,713.97,713.15,1.04315981]
[1735654990555,1.46369162,713.97,713.12,1.04315981]
[1735654991653,1.46369162,713.97,713.13,1.04315981]
[1735654992656,1.46369162,713.97,712.85,1.04315981]
[1735654992657,1.46369162,713.97,713.12,1.04315981]
[1735654993453,1.46369162,713.97,713.08,1.04315981]
[1735654994658,1.46369162,713.97,713.07,1.04315981]
[1735654995953,1.46369162,713.97,713.03,1.04315981]
[1735654996858,1.46369162,713.97,712.91,1.04315981]
[1735654997956,1.46369162,713.97,712.92,1.04315981]
[1735654999260,1.46369162,713.97,713.17,1.04315981]
[1735655000360,1.46369162,713.97,713.16,1.04315981]
[1735655001459,1.46369162,713.97,713.18,1.04315981]
[1735655002860,1.46369162,713.97,713.26,1.04315981]
[1735655003657,1.46369162,713.97,713.25,1.04315981]
[1735655004664,1.46369162,713.97,713.17,1.04315981]
[1735655005659,1.46369162,713.97,713.19,1.04315981]
[1735655006864,1.46369162,713.97,713.17,1.04315981]
[1735655008067,1.46369162,713.97,712.88,1.04315981]
[1735655009166,1.46369162,713.97,712.87,1.04315981]
[1735655010560,1.46369162,713.97,712.85,1.04315981]
[1735655011770,1.46369162,713.97,712.63,1.04315981]
[1735655012766,1.46369162,713.97,712.77,1.04315981]
[1735655013767,1.46369162,713.97,712.25,0.28080028]
[1735655013768,1.46369162,713.97,712.96,1.04315981]
[1735655015166,1.46369162,713.97,712.59,1.04315981]
[1735655015167,1.46369162,713.97,713.04,1.04315981]
[1735655016264,1.46369162,713.97,712.88,1.04315981]
[1735655017365,1.46369162,713.97,712.86,1.04315981]
[1735655018469,1.46369162,713.97,713.0,1.04315981]
[1735655019772,1.46369162,713.97,712.97,1.04315981]
[1735655021079,1.46369162,713.97,712.99,1.04315981]
[1735655022274,1.46369162,713.97,713.01,1.04315981]
[1735655023379,1.46369162,713.97,712.32,2.12978462]
[1735655023380,1.46369162,713.97,713.08,1.04315981]
[1735655024379,1.46369162,713.97,713.11,1.04315981]
[1735655025777,1.46369162,713.97,713.09,1.04315981]
[1735655027081,1.46369162,713.97,713.15,1.04315981]
[1735655029490,1.46369162,713.97,713.25,1.04315981]
[1735655030586,1.46369162,713.97,713.26,1.04315981]
[1735655031787,1.46369162,713.97,713.25,1.04315981]
[1735655033182,1.46369162,713.97,712.99,1.04315981]
[1735655034587,1.46369162,713.97,713.02,1.04315981]
[1735655034782,0.28011989,713.98,713.02,1.04315981]
[1735655035182,1.46328131,714.1,713.02,1.04315981]
[1735655035684,1.46328131,714.1,713.22,1.04315981]
[1735655036589,1.46328131,714.1,712.78,2.69186629]
[1735655036590,1.46328131,714.1,713.38,1.04315981]
[1735655037788,1.46328131,714.1,713.4,1.04315981]
[1735655039086,1.46328131,714.1,713.38,1.04315981]
[1735655040289,1.46328131,714.1,713.27,1.04315981]
[1735655041387,1.46328131,714.1,713.29,1.04315981]
[1735655042290,1.46328131,714.1,713.28,1.04315981]
[1735655043691,1.46328131,714.1,713.25,1.04315981]
[1735655044792,1.46328131,714.1,713.22,1.04315981]
[1735655045791,1.04684425,715.04,713.22,1.04315981]
[1735655045993,1.46285074,714.31,713.27,1.04315981]
[1735655046192,1.04684425,715.13,713.27,1.04315981]
[1735655046390,1.4627585,714.3,713.27,1.04315981]
[1735655046791,1.04684425,715.13,713.27,1.04315981]
[1735655046991,0.25756917,715.12,713.27,1.04315981]
[1735655047393,0.27968116,715.1,713.28,1.04315981]
[1735655047588,0.25756059,715.09,713.28,1.04315981]
[1735655047987,1.71977618,715.09,713.28,1.04315981]
[1735655048187,0.25756059,715.08,713.28,1.04315981]
[1735655048392,0.25756059,715.08,713.32,1.04315981]
[1735655049093,0.25756059,715.07,713.32,1.04315981]
[1735655049289,0.25756059,715.06,713.26,1.04315981]
[1735655049490,0.25756059,715.05,713.26,1.04315981]
[1735655049693,0.25756059,715.04,713.26,1.04315981]
[1735655049995,0.25756825,715.03,713.26,1.04315981]
[1735655050191,0.25756825,715.02,713.26,1.04315981]
[1735655050389,0.25756825,715.01,713.34,1.04315981]
[1735655050591,0.25756825,715.0,713.34,1.04315981]
[1735655050790,0.25756825,714.99,713.34,1.04315981]
[1735655050993,0.25756825,714.98,713.34,1.04315981]
[1735655051187,0.25756825,714.97,713.34,1.04315981]
[1735655051393,0.25756825,714.96,713.34,1.04315981]
[1735655051593,0.25756825,714.95,713.34,1.04315981]
[1735655051893,0.25756825,714.94,713.34,1.04315981]
[1735655052094,0.25756825,714.93,713.34,1.04315981]
[1735655052293,0.25756825,714.92,713.34,1.04315981]
[1735655052494,0.25758657,714.91,713.34,1.04315981]
[1735655052694,1.46221559,715.09,713.28,1.04315981]
[1735655052695,0.25758657,714.9,713.28,1.04315981]
[1735655052895,0.25758657,714.89,713.28,1.04315981]
[1735655053089,0.25758657,714.88,713.28,1.04315981]
[1735655053291,0.25758657,714.87,713.28,1.04315981]
[1735655053492,0.25758657,714.86,713.28,1.04315981]
[1735655053690,0.25758657,714.85,713.28,1.04315981]
[1735655053896,0.25758657,714.84,713.33,1.04315981]
[1735655054092,0.25758657,714.83,713.33,1.04315981]
[1735655054287,0.25758657,714.82,713.33,1.04315981]
[1735655054493,0.25758657,714.81,713.33,1.04315981]
[1735655054691,0.25758657,714.8,713.31,1.04315981]
[1735655054895,0.25758657,714.79,713.31,1.04315981]
[1735655055195,0.25756851,714.78,713.31,1.04315981]
[1735655055398,0.25756851,715.08,713.31,1.04315981]
[1735655055596,0.25756851,715.07,713.31,1.04315981]
[1735655055895,0.25756851,715.07,712.85,1.25179177]
[1735655055896,0.25756851,715.06,713.38,1.04315981]
[1735655056096,0.25756851,715.05,713.38,1.04315981]
[1735655056297,0.25756851,715.04,713.38,1.04315981]
[1735655056497,0.25756851,715.03,713.38,1.04315981]
[1735655056693,0.25756851,715.02,713.38,1.04315981]
[1735655056899,0.25756851,715.01,713.35,1.04315981]
[1735655057198,0.25756851,715.0,713.35,1.04315981]
[1735655057398,0.25756851,714.99,713.35,1.04315981]
[1735655057599,0.25756851,714.98,713.35,1.04315981]
[1735655057899,0.25756851,714.97,713.35,1.04315981]
[1735655058098,0.25756851,714.97,712.79,2.12978462]
[1735655058099,0.25756851,714.96,713.37,1.04315981]
[1735655058400,0.25756851,714.95,713.37,1.04315981]
[1735655058599,0.25756851,714.94,713.37,1.04315981]
[1735655058901,0.25756851,714.93,713.37,1.04315981]
[1735655059101,0.25756851,714.92,713.31,1.04315981]
[1735655059296,0.25756851,714.91,713.31,1.04315981]
[1735655059595,0.25756851,714.9,713.31,1.04315981]
[1735655059895,0.25756851,714.89,713.31,1.04315981]
[1735655060198,0.25756851,714.88,713.31,1.04315981]
[1735655060401,0.25763087,714.87,713.31,1.04315981]
[1735655060599,0.25763087,714.86,713.33,1.04315981]
[1735655060800,0.25763087,714.85,713.33,1.04315981]
[1735655061000,1.04684425,714.96,713.33,1.04315981]
[1735655061196,0.25765096,714.95,713.33,1.04315981]
[1735655061802,0.25765096,714.95,713.15,1.04315981]
[1735655061999,0.25765096,714.94,713.15,1.04315981]
[1735655062200,0.25765096,714.93,713.15,1.04315981]
[1735655062399,0.25765096,714.92,713.15,1.04315981]
[1735655062693,0.25765096,714.91,713.15,1.04315981]
[1735655062901,0.25765096,714.91,712.36,2.12978462]
[1735655062902,0.25765096,714.9,713.21,1.04315981]
[1735655063097,0.25764564,714.89,713.21,1.04315981]
[1735655063296,0.27977114,714.87,713.21,1.04315981]
[1735655063600,0.25764564,714.86,713.21,1.04315981]
[1735655064195,0.25764564,714.86,713.22,1.04315981]
[1735655065403,0.25764564,714.86,713.27,1.04315981]
[1735655065602,0.27977114,714.87,713.27,1.04315981]
[1735655065802,0.25761984,714.86,713.27,1.04315981]
[1735655066402,0.25761984,714.86,713.4,1.04315981]
[1735655068303,0.25763138,714.85,713.4,1.04315981]
[1735655068502,0.25763138,714.84,713.41,1.04315981]
[1735655069006,0.25764134,714.83,713.41,1.04315981]
[1735655069206,0.25764134,714.82,713.41,1.04315981]
[1735655069399,0.25764134,714.81,713.41,1.04315981]
[1735655069605,1.04684425,714.77,713.44,1.04315981]
[1735655069807,0.25762916,714.76,713.44,1.04315981]
[1735655070908,0.25760304,714.75,713.43,1.04315981]
[1735655071103,0.25760304,714.74,713.43,1.04315981]
[1735655071305,0.25760304,714.73,713.43,1.04315981]
[1735655071506,1.46259456,714.85,713.43,1.04315981]
[1735655071704,0.25755647,714.84,713.43,1.04315981]
[1735655072412,0.25755647,714.84,713.66,1.04315981]
[1735655073305,1.46259456,714.85,713.66,1.04315981]
[1735655073511,0.25756107,714.84,713.66,1.04315981]
[1735655073706,0.25756107,714.84,713.72,1.04315981]
[1735655074911,0.25756107,714.84,713.64,1.04315981]
[1735655076505,0.25756107,714.84,713.54,1.04315981]
[1735655077609,1.04684425,714.78,713.51,1.04315981]
[1735655077807,0.25756107,714.77,713.51,1.04315981]
[1735655078611,1.04684425,714.73,713.45,1.04315981]
[1735655078812,0.25764751,714.72,713.45,1.04315981]
[1735655079313,0.25766047,714.71,713.45,1.04315981]
[1735655079513,0.25766047,714.7,713.45,1.04315981]
[1735655079717,1.30450472,714.69,713.39,1.04315981]
[1735655079913,0.25766047,714.68,713.39,1.04315981]
[1735655080716,0.25766047,714.68,712.87,1.25179177]
[1735655080717,1.04684425,714.67,713.36,1.04315981]
[1735655081015,0.25766047,714.66,713.36,1.04315981]
[1735655081213,0.25766114,714.65,713.36,1.04315981]
[1735655081416,0.25766114,714.64,713.36,1.04315981]
[1735655081717,0.25766114,714.63,713.36,1.04315981]
[1735655082017,0.25766114,714.63,712.86,1.25179177]
[1735655082018,0.25766114,714.62,713.37,1.04315981]
[1735655082218,0.25766114,714.61,713.37,1.04315981]
[1735655082419,0.25766114,714.67,713.37,1.04315981]
[1735655082615,0.25766114,714.66,713.37,1.04315981]
[1735655082814,0.25766114,714.65,713.26,1.04315981]
[1735655084219,0.25766114,714.65,712.38,2.12978462]
[1735655084220,0.25766114,714.65,713.27,1.04315981]
[1735655084419,1.04684425,714.71,713.27,1.04315981]
[1735655084420,0.25766114,714.64,713.27,1.04315981]
[1735655084621,0.25766114,714.7,713.27,1.04315981]
[1735655084922,0.25766114,714.69,713.27,1.04315981]
[1735655085222,0.25766114,714.68,713.27,1.04315981]
[1735655085417,0.25766114,714.7,713.27,1.04315981]
[1735655085622,0.25766114,714.69,713.23,1.04315981]
[1735655085820,0.25766114,714.68,713.23,1.04315981]
[1735655086016,0.25766114,714.67,713.23,1.04315981]
[1735655086320,0.25766114,714.66,713.23,1.04315981]
[1735655086525,0.25769355,714.65,713.23,1.04315981]
[1735655086716,0.25769355,714.64,713.23,1.04315981]
[1735655086917,0.25769355,714.63,713.2,1.04315981]
[1735655087118,0.25769355,714.62,713.2,1.04315981]
[1735655087322,0.25769355,714.61,713.2,1.04315981]
[1735655087519,0.25769355,714.6,713.2,1.04315981]
[1735655087718,0.25769355,714.59,713.2,1.04315981]
[1735655087924,0.25769355,714.58,713.06,1.04315981]
[1735655088225,0.25769355,714.57,713.06,1.04315981]
[1735655088424,0.25769355,714.56,713.06,1.04315981]
[1735655088624,0.25769355,714.55,713.06,1.04315981]
[1735655088827,0.25769355,714.54,713.09,1.04315981]
[1735655089019,1.46311725,714.54,713.09,1.04315981]
[1735655089221,0.25769355,714.53,713.09,1.04315981]
[1735655089624,0.25769355,714.53,712.57,1.25179177]
[1735655089625,0.25769355,714.53,713.12,1.04315981]
[1735655090626,0.25769355,714.53,713.15,1.04315981]
[1735655091622,0.25769774,714.52,713.15,1.04315981]
[1735655091821,0.25769774,714.52,712.67,1.25179177]
[1735655091822,0.25769774,714.51,713.18,1.04315981]
[1735655092020,0.25769774,714.5,713.18,1.04315981]
[1735655092225,0.25769774,714.53,713.18,1.04315981]
[1735655092527,0.25769774,714.52,713.18,1.04315981]
[1735655092727,0.25769774,714.51,713.18,1.04315981]
[1735655092921,0.25769774,714.5,713.22,1.04315981]
[1735655093123,0.25769774,714.49,713.22,1.04315981]
[1735655093318,0.25769774,714.48,713.22,1.04315981]
[1735655093523,0.25769774,714.47,713.22,1.04315981]
[1735655093822,1.46311725,714.54,713.26,1.04315981]
[1735655094027,0.25764681,714.53,713.26,1.04315981]
[1735655094227,1.46311725,714.54,713.26,1.04315981]
[1735655094428,0.2576569,714.53,713.26,1.04315981]
[1735655095028,0.2576569,714.53,713.3,1.04315981]
[1735655095327,0.27990819,714.52,713.3,1.04315981]
[1735655095627,0.2576569,714.51,713.3,1.04315981]
[1735655096129,0.2576569,714.51,713.23,1.04315981]
[1735655097031,0.27991602,714.5,713.23,1.04315981]
[1735655097225,0.2576569,714.49,713.23,1.04315981]
[1735655097429,0.27992386,714.48,713.23,1.04315981]
[1735655097629,0.2576569,714.47,713.23,1.04315981]
[1735655097829,0.27993169,714.46,713.23,1.04315981]
[1735655098025,0.2576569,714.45,713.23,1.04315981]
[1735655098231,0.2576569,714.45,712.79,1.25179177]
[1735655098232,0.2576569,714.45,713.24,1.04315981]
[1735655099330,1.46300961,714.44,713.24,1.04315981]
[1735655099537,0.2576569,714.43,713.19,1.04315981]
[1735655099832,0.27994736,714.42,713.19,1.04315981]
[1735655100030,0.2576569,714.41,713.19,1.04315981]
[1735655100226,0.2799552,714.4,713.19,1.04315981]
[1735655100427,0.2799552,714.4,713.23,1.04315981]
[1735655100428,0.25769365,714.39,713.23,1.04315981]
[1735655101826,0.2799552,714.4,713.23,1.04315981]
[1735655102227,0.25767172,714.39,713.23,1.04315981]
[1735655102427,0.2799552,714.4,713.23,1.04315981]
[1735655103732,0.2799552,714.4,713.19,1.04315981]
[1735655105727,0.25766494,714.39,713.19,1.04315981]
[1735655105928,0.27996304,714.38,713.19,1.04315981]
[1735655106131,0.25766494,714.37,713.19,1.04315981]
[1735655106731,0.27997088,714.36,713.19,1.04315981]
[1735655109532,1.46293273,714.35,713.19,1.04315981]
[1735655117543,1.46293273,714.35,709.47,5.36055324]
[1735655117544,1.46293273,714.35,713.42,1.04315981]
[1735655119043,1.46293273,714.35,713.41,1.04315981]
[1735655120043,1.46293273,714.35,713.4,1.04315981]
[1735655121241,1.46293273,714.35,713.37,1.04315981]
[1735655122447,1.46293273,714.35,713.38,1.04315981]
[1735655123644,1.46293273,714.35,713.43,1.04315981]
[1735655124940,1.46293273,714.35,713.45,1.04315981]
[1735655126045,1.46293273,714.35,713.49,1.04315981]
[1735655127242,1.46293273,714.35,713.5,1.04315981]
[1735655127646,0.25766783,714.34,713.5,1.04315981]
[1735655127846,1.46293273,714.35,713.5,1.04315981]
[1735655128047,0.25766568,714.34,713.5,1.04315981]
[1735655128248,0.25766568,714.34,713.49,1.04315981]
[1735655128446,1.46293273,714.35,713.49,1.04315981]
[1735655129346,1.46293273,714.35,713.31,1.04315981]
[1735655129347,1.46293273,714.35,713.51,1.04315981]
[1735655130653,1.46293273,714.35,713.39,1.04315981]
[1735655131750,1.46293273,714.35,713.4,1.04315981]
[1735655134651,1.46293273,714.35,713.41,1.04315981]
[1735655135553,1.46293273,714.35,712.85,0.71447877]
[1735655135554,1.46293273,714.35,713.42,1.04315981]
[1735655137451,1.46293273,714.35,712.87,0.71447877]
[1735655137452,1.46293273,714.35,713.49,1.04315981]
[1735655138658,1.46293273,714.35,713.51,1.04315981]
[1735655139456,1.46293273,714.35,713.5,1.04315981]
[1735655141659,1.46293273,714.35,713.52,1.04315981]
[1735655142156,0.25766961,714.34,713.52,1.04315981]
[1735655142361,1.46293273,714.35,713.52,1.04315981]
[1735655142962,1.46293273,714.35,713.05,0.71447877]
[1735655142963,1.46293273,714.35,713.5,1.04315981]
[1735655143864,1.46293273,714.35,713.38,1.04315981]
[1735655144864,1.46293273,714.35,713.36,1.04315981]
[1735655146063,1.46293273,714.35,713.39,1.04315981]
[1735655147067,1.46293273,714.35,713.35,1.04315981]
[1735655148167,1.46293273,714.35,713.4,1.04315981]
[1735655149163,1.46293273,714.35,713.39,1.04315981]
[1735655150164,1.46293273,714.35,713.41,1.04315981]
[1735655151469,1.46293273,714.35,713.46,1.04315981]
[1735655152472,1.46293273,714.35,713.48,1.04315981]
[1735655153374,1.46293273,714.35,713.54,1.04315981]
[1735655154276,0.25768008,714.34,713.54,1.04315981]
[1735655154477,1.46293273,714.35,713.53,1.04315981]
[1735655154670,0.25768136,714.34,713.53,1.04315981]
[1735655155473,0.25768136,714.34,713.54,1.04315981]
[1735655155675,1.46293273,714.35,713.54,1.04315981]
[1735655156073,0.53767211,714.34,713.54,1.04315981]
[1735655156377,0.27998264,714.33,713.54,1.04315981]
[1735655156879,0.27998264,714.33,713.47,1.04315981]
[1735655157074,0.25769413,714.32,713.47,1.04315981]
[1735655157378,0.27999048,714.31,713.47,1.04315981]
[1735655157877,0.27999048,714.31,713.49,1.04315981]
[1735655158676,0.27999048,714.31,713.43,1.04315981]
[1735655160000,0.27999048,714.31,713.44,1.04315981]
[1735655160583,0.27999048,714.31,713.42,1.04315981]
[1735655164282,0.27999048,714.31,713.47,1.04315981]
[1735655165384,0.27999048,714.31,712.84,2.12978462]
[1735655165385,0.27999048,714.31,713.45,1.04315981]
[1735655166282,0.25768237,714.3,713.45,1.04315981]
[1735655166484,0.25768237,714.3,712.94,1.25179177]
[1735655166485,0.27999048,714.31,713.47,1.04315981]
[1735655167789,0.27999048,714.31,713.4,1.04315981]
[1735655168789,0.27999048,714.31,713.26,1.04315981]
[1735655169685,0.27999048,714.31,713.23,1.04315981]
[1735655170693,0.27999048,714.31,713.25,1.04315981]
[1735655171795,0.27999048,714.31,713.24,1.04315981]
[1735655172799,0.27999048,714.31,713.26,1.04315981]
[1735655173994,0.27999048,714.31,713.27,1.04315981]
[1735655175298,0.27999048,714.31,712.31,2.12978462]
[1735655175299,0.27999048,714.31,713.3,1.04315981]
[1735655176803,0.27999048,714.31,713.45,1.04315981]
[1735655178302,0.27999048,714.31,713.17,1.04315981]
[1735655181306,0.25773591,714.3,713.17,1.04315981]
[1735655183109,0.25773591,714.3,713.18,1.04315981]
[1735655183907,0.25773591,714.3,713.05,1.04315981]
[1735655184312,1.32683473,714.31,713.05,1.04315981]
[1735655184313,0.25781661,714.29,713.05,1.04315981]
[1735655184506,0.25781661,714.28,713.05,1.04315981]
[1735655184809,0.25781661,714.27,713.05,1.04315981]
[1735655185008,0.25784548,714.26,713.05,1.04315981]
[1735655185205,1.30468973,714.25,712.91,1.04315981]
[1735655185510,0.25784548,714.24,712.91,1.04315981]
[1735655185810,0.25784548,714.23,712.91,1.04315981]
[1735655186009,0.25784548,714.22,712.91,1.04315981]
[1735655186209,0.25784548,714.21,712.91,1.04315981]
[1735655186412,1.04684425,714.16,712.79,1.04315981]
[1735655186603,0.25784548,714.15,712.79,1.04315981]
[1735655187609,0.25784548,714.15,712.68,1.04315981]
[1735655187806,0.25784548,714.14,712.68,1.04315981]
[1735655188006,0.25784548,714.13,712.68,1.04315981]
[1735655188204,0.25784548,714.12,712.68,1.04315981]
[1735655188408,0.25784548,714.11,712.68,1.04315981]
[1735655188610,0.25784548,714.1,712.68,1.04315981]
[1735655188810,0.25784548,714.09,712.58,1.04315981]
[1735655189011,0.25784548,714.08,712.58,1.04315981]
[1735655189214,0.25784548,714.07,712.58,1.04315981]
[1735655189412,1.46372753,714.27,712.58,1.04315981]
[1735655189608,0.25789146,714.26,712.58,1.04315981]
[1735655189813,0.25789146,714.25,712.52,1.04315981]
[1735655190012,0.25789146,714.24,712.52,1.04315981]
[1735655190313,0.25789146,714.23,712.52,1.04315981]
[1735655190520,0.25789146,714.22,712.52,1.04315981]
[1735655190711,0.25789146,714.21,712.52,1.04315981]
[1735655190908,0.25789146,714.2,712.37,1.04315981]
[1735655191107,0.25789146,714.19,712.37,1.04315981]
[1735655191410,0.25789146,714.18,712.37,1.04315981]
[1735655191608,0.25789146,714.17,712.37,1.04315981]
[1735655191816,0.25789146,714.16,712.37,1.04315981]
[1735655192017,0.25789146,714.26,712.34,1.04315981]
[1735655192215,0.25789146,714.25,712.34,1.04315981]
[1735655192417,0.25789146,714.26,712.34,1.04315981]
[1735655192610,1.46372753,714.27,712.34,1.04315981]
[1735655193014,1.46372753,714.27,712.36,1.04315981]
[1735655194113,0.25786623,714.26,712.36,1.04315981]
[1735655196719,1.46372753,714.27,705.38,4.95832771]
[1735655196720,0.25786623,714.25,712.48,1.04315981]
[1735655197022,0.25786623,714.24,712.48,1.04315981]
[1735655197217,0.25786623,714.23,712.48,1.04315981]
[1735655197421,1.46372753,714.27,712.48,1.04315981]
[1735655197723,0.25783548,714.26,712.52,1.04315981]